fUST/lending_fUST_20250615
["ID","MTS","AMOUNT","RATE_DAILY","PERIOD"]
[365804105,1749924644616,-500.0,0.00023373,2]
[365804106,1749924644625,-500.0,0.00023373,2]
[365804107,1749924644636,-500.0,0.00023373,2]
[365804108,1749924644647,-500.0,0.00023373,2]
[365804109,1749924644657,-500.0,0.00023373,2]
[365804110,1749924644666,-500.0,0.00023373,2]
[365804111,1749924644676,-500.0,0.00023373,2]
[365804112,1749924644685,-500.0,0.00023373,2]
[365804113,1749924644695,-500.0,0.00023373,2]
[365804114,1749924644704,-500.0,0.00023373,2]
[365804115,1749924644713,-421.21542315,0.00023373,2]
[365804116,1749924644722,-218.38378821,0.00023381,2]
[365804117,1749924644732,-1188.40389234,0.00023383,9]
[365804118,1749924644742,-1500.0,0.00023386,2]
[365804119,1749924644751,-158.66118947,0.00023397,2]
[365804120,1749924644761,-581.61621179,0.00023405,2]
[365804121,1749924644770,-5000.0,0.00023416,2]
[365804122,1749924644779,-800.0,0.00023437,2]
[365804123,1749924644789,-783.75,0.00023445,3]
[365804124,1749924644798,-800.0,0.00023446,2]
[365804125,1749924644808,-404.51743958,0.00023447,2]
[365804126,1749924644817,-168.0,0.00023461,2]
[365804127,1749924644826,-11042.98941967,0.00023491,2]
[365804128,1749924644835,-800.0,0.00023498,2]
[365804129,1749924644844,-704.9913142,0.000235,2]
[365804130,1749924644854,-1188.40389234,0.00023521,9]
[365804131,1749924644863,-298.461047,0.00023535,7]
[365804132,1749924644872,-298.461047,0.00023535,7]
[365804133,1749924644881,-151.0,0.00023535,7]
[365804134,1749924644892,-199.04544,0.00023535,7]
[365804135,1749924644902,-199.04544,0.00023535,7]
[365804136,1749924644911,-151.0,0.00023535,7]
[365804137,1749924644920,-800.0,0.00023545,2]
[365804138,1749924644930,-783.75,0.00023545,7]
[365804139,1749924644939,-800.0,0.00023552,2]
[365804140,1749924644948,-543.53,0.00023561,4]
[365804141,1749924644958,-460.0,0.00023561,4]
[365804142,1749924644967,-360.0,0.00023561,4]
[365804143,1749924644976,-310.0,0.00023561,4]
[365804144,1749924644985,-460.0,0.00023561,4]
[365804145,1749924644995,-1489.84,0.00023561,4]
[365804146,1749924645004,-151.0,0.00023561,7]
[365804147,1749924645013,-460.0,0.00023561,4]
[365804148,1749924645023,-460.0,0.00023561,4]
[365804149,1749924645032,-460.0,0.00023561,4]
[365804150,1749924645041,-460.0,0.00023561,4]
[365804151,1749924645050,-151.0,0.00023561,7]
[365804152,1749924645059,-460.0,0.00023561,4]
[365804153,1749924645069,-197.826638,0.00023561,7]
[365804154,1749924645078,-460.0,0.00023561,4]
[365804155,1749924645088,-197.826638,0.00023561,7]
[365804156,1749924645097,-663.99,0.00023561,4]
[365804157,1749924645106,-460.0,0.00023561,4]
[365804158,1749924645115,-1867.23,0.00023561,4]
[365804159,1749924645124,-460.0,0.00023561,4]
[365804160,1749924645133,-460.0,0.00023561,4]
[365804161,1749924645143,-951.14,0.00023561,4]
[365804162,1749924645152,-1111.84,0.00023561,4]
[365804163,1749924645190,-552.61,0.00023561,4]
[365804164,1749924645199,-1345.4,0.00023561,4]
[365804165,1749924645208,-151.0,0.00023561,7]
[365804166,1749924645217,-2920.66,0.00023561,4]
[365804167,1749924645226,-640.04,0.00023561,4]
[365804168,1749924645235,-460.0,0.00023561,4]
[365804169,1749924645245,-522.2,0.00023561,4]
[365804170,1749924645254,-1305.16,0.00023561,4]
[365804171,1749924645263,-1489.11,0.00023561,4]
[365804172,1749924645273,-460.0,0.00023561,4]
[365804173,1749924645282,-1020.4,0.00023561,4]
[365804174,1749924645292,-2400.67,0.00023561,4]
[365804175,1749924645301,-542.66,0.00023561,4]
[365804176,1749924645310,-460.0,0.00023561,4]
[365804177,1749924645319,-185.0,0.00023561,7]
[365804178,1749924645329,-2715.38,0.00023561,4]
[365804179,1749924645340,-185.0,0.00023561,7]
[365804180,1749924645349,-714.26,0.00023561,2]
[365804181,1749924645360,-3104.67,0.00023561,4]
[365804182,1749924645370,-1433.54,0.00023561,4]
[365804183,1749924645380,-478.13,0.00023561,4]
[365804184,1749924645391,-460.0,0.00023561,4]
[365804185,1749924645401,-2666.98,0.00023561,4]
[365804186,1749924645410,-460.0,0.00023561,4]
[365804187,1749924645421,-460.0,0.00023561,4]
[365804188,1749924645430,-460.0,0.00023561,4]
[365804189,1749924645439,-1487.25,0.00023561,4]
[365804190,1749924645449,-1782.67,0.00023561,4]
[365804191,1749924645459,-197.139781,0.00023561,7]
[365804192,1749924645468,-2215.93,0.00023561,4]
[365804193,1749924645478,-2884.29,0.00023561,4]
[365804194,1749924645487,-197.139781,0.00023561,7]
[365804195,1749924645496,-460.0,0.00023561,4]
[365804196,1749924645507,-1040.75,0.00023561,4]
[365804197,1749924645517,-460.0,0.00023561,4]
[365804198,1749924645526,-1157.61,0.00023561,4]
[365804199,1749924645537,-504.86,0.00023561,4]
[365804200,1749924645548,-928.55,0.00023561,4]
[365804201,1749924645558,-1529.6,0.00023561,4]
[365804202,1749924645568,-168.16966624,0.00023571,2]
[365804203,1749924645579,-500.0,0.00023573,2]
[365804204,1749924645588,-500.0,0.00023573,2]
[365804205,1749924645597,-500.0,0.00023573,2]
[365804206,1749924645607,-56607.22146149,0.000236,2]
[365804207,1749924645627,-20224.8708474,0.000236,2]
[365804208,1749924645678,-154.732959,0.00022739,7]
[365804209,1749924645689,-154.732959,0.00023013,7]
[365804210,1749924645699,-150.534082,0.0002335,7]
[365804211,1749924645713,-4.198877,0.0002335,7]
[365804212,1749924645722,-2295.801123,0.000236,2]
[365804213,1749924645733,-572.60982878,0.000236,2]
[365804214,1749924645744,-1805.5625,0.000236,2]
[365804219,1749924646329,-460.0,0.00021917,4]
[365804220,1749924646338,-460.0,0.00021917,4]
[365804221,1749924646347,-460.0,0.00021917,4]
[365804222,1749924646358,-460.0,0.00022191,4]
[365804223,1749924646367,-460.0,0.00022465,4]
[365804224,1749924646376,-365.2762568,0.00023096,2]
[365804225,1749924646385,-10829.9518156,0.000236,2]
[365804228,1749924805369,297.142531,0.00013699,2]
[365804243,1749925641149,-295.57685128,0.000189,2]
[365804244,1749925642102,-62.87192907,0.000189,2]
[365804245,1749925642123,-124.53707953,0.00020187,2]
[365804246,1749925653141,-172.60545147,0.00020187,2]
[365804247,1749925653164,-160.0,0.00020398,2]
[365804248,1749925653189,-1200.0,0.00020421,2]
[365804249,1749925653213,-300.0,0.00020421,2]
[365804250,1749925653235,-300.0,0.00020421,2]
[365804251,1749925653256,-2643.83503038,0.00020422,2]
[365804253,1749925745174,-300.0,0.00018999,2]
[365804254,1749925745195,-12690.24831775,0.00019,2]
[365804256,1749925762168,-203.79197119,0.00019,2]
[365804324,1749925832642,-63.450837,0.00019,2]
[365804326,1749925832652,-1200.0,0.00019999,2]
[365804328,1749925832662,-465.71886687,0.00019999,2]
[365804330,1749925832672,-544.21077901,0.00019999,2]
[365804332,1749925832681,-10520.03625547,0.0002,2]
[365804334,1749925832695,-635.39202483,0.0002,2]
[365804337,1749925832707,-5916.16217731,0.0002,2]
[365804350,1749925838453,-980.57061958,0.0002,2]
[365804351,1749925838466,-377.33167231,0.0002,2]
[365804352,1749925838477,-1476.8542889,0.0002,2]
[365804353,1749925838489,-4400.00001035,0.0002,2]
[365804354,1749925838501,-842.19324208,0.0002,2]
[365804355,1749925838513,-21680.7984827,0.0002,2]
[365804356,1749925838525,-396.45478137,0.0002,2]
[365804357,1749925838537,-791.72313881,0.0002,2]
[365804358,1749925838549,-5412.27967707,0.0002,2]
[365804359,1749925838559,-501.52276075,0.0002,2]
[365804360,1749925838568,-1352.4,0.00020218,2]
[365804361,1749925838578,-6984.18053662,0.00020422,2]
[365804362,1749925838588,-182.26194,0.00020622,2]
[365804363,1749925838598,-170.231,0.0002071,2]
[365804364,1749925838607,-24900.0,0.00020711,2]
[365804365,1749925838618,-163.451102,0.00020822,2]
[365804366,1749925838629,-964.93688932,0.00021,4]
[365804367,1749925838639,-964.9368892,0.00021038,4]
[365804368,1749925838648,-600.0,0.00021154,2]
[365804369,1749925838658,-964.9368892,0.00021176,4]
[365804370,1749925838667,-8147.72201998,0.00021244,2]
[365804371,1749925838677,-716.19,0.000213,2]
[365804372,1749925838686,-964.9368892,0.00021314,5]
[365804373,1749925838696,-964.9368892,0.00021452,5]
[365804374,1749925838706,-168.0,0.00021561,2]
[365804375,1749925838716,-964.9368892,0.0002159,5]
[365804376,1749925838725,-195.0,0.00021652,2]
[365804377,1749925838735,-1328.96,0.00021662,2]
[365804378,1749925838744,-964.9368892,0.00021728,5]
[365804379,1749925838754,-1771.95613807,0.00021817,2]
[365804380,1749925838766,-964.9368892,0.00021866,6]
[365804381,1749925838776,-1519.0,0.00021881,2]
[365804382,1749925838786,-365.2,0.00021907,3]
[365804383,1749925838797,-168.69,0.00021907,10]
[365804384,1749925838807,-500.0,0.00021916,2]
[365804385,1749925838818,-462.70307515,0.00021916,2]
[365804386,1749925838828,-500.0,0.00021917,4]
[365804387,1749925838838,-460.0,0.00021917,4]
[365804388,1749925838848,-440.0,0.00021917,4]
[365804389,1749925838857,-460.0,0.00021917,4]
[365804390,1749925838866,-178.97890036,0.00021917,4]
[365804391,1749925838878,-460.0,0.00021917,4]
[365804392,1749925838890,-460.0,0.00021917,4]
[365804393,1749925838900,-460.0,0.00021917,4]
[365804394,1749925838909,-460.0,0.00021917,4]
[365804395,1749925838918,-373.05866487,0.00021917,4]
[365804396,1749925838927,-380.0,0.00021917,4]
[365804397,1749925838937,-316.49676492,0.00021917,4]
[365804398,1749925838947,-400.09493162,0.00021917,4]
[365804399,1749925838956,-460.0,0.00021917,4]
[365804400,1749925838965,-460.0,0.00021917,4]
[365804401,1749925838976,-460.0,0.00021917,4]
[365804402,1749925838986,-460.0,0.00021917,4]
[365804403,1749925838995,-460.0,0.00021917,4]
[365804404,1749925839004,-460.0,0.00021917,4]
[365804405,1749925839013,-370.0,0.00021917,4]
[365804406,1749925839023,-460.0,0.00021917,4]
[365804407,1749925839032,-460.0,0.00021917,4]
[365804408,1749925839042,-460.0,0.00021917,4]
[365804409,1749925839052,-366.28113671,0.00021917,4]
[365804410,1749925839061,-460.0,0.00021917,4]
[365804411,1749925839079,-207.16362434,0.00021917,4]
[365804412,1749925839089,-280.0,0.00021917,4]
[365804413,1749925839098,-254.77646069,0.00021917,4]
[365804414,1749925839109,-460.0,0.00021917,4]
[365804415,1749925839120,-199.99999999,0.00021917,4]
[365804416,1749925839132,-402.01289897,0.00021917,4]
[365804417,1749925839142,-460.0,0.00021917,4]
[365804418,1749925839152,-460.0,0.00021917,4]
[365804419,1749925839162,-460.0,0.00021917,4]
[365804420,1749925839171,-460.0,0.00021917,4]
[365804421,1749925839180,-440.0,0.00021917,4]
[365804422,1749925839191,-581.83222827,0.00021917,4]
[365804423,1749925839201,-460.0,0.00021917,4]
[365804424,1749925839210,-460.0,0.00021917,4]
[365804425,1749925839219,-370.9535,0.00021917,4]
[365804426,1749925839228,-460.0,0.00021917,4]
[365804427,1749925839238,-412.83622971,0.00021917,4]
[365804428,1749925839247,-1181.0,0.00021917,4]
[365804429,1749925839257,-151.0,0.00021917,4]
[365804430,1749925839266,-271.97510472,0.00021917,4]
[365804431,1749925839275,-151.0,0.00021917,4]
[365804432,1749925839284,-353.6568673,0.00021917,4]
[365804433,1749925839294,-500.0,0.00021917,4]
[365804434,1749925839303,-500.0,0.00021917,4]
[365804435,1749925839312,-151.0,0.00021917,4]
[365804436,1749925839322,-151.0,0.00021917,4]
[365804437,1749925839331,-388.78370305,0.00021917,4]
[365804438,1749925839341,-460.0,0.00021917,4]
[365804439,1749925839350,-205.16095159,0.00021917,4]
[365804440,1749925839359,-411.90287361,0.00021917,4]
[365804441,1749925839370,-460.0,0.00021917,4]
[365804442,1749925839380,-296.09505606,0.00021917,4]
[365804443,1749925839389,-460.0,0.00021917,4]
[365804444,1749925839398,-460.0,0.00021917,4]
[365804445,1749925839408,-460.0,0.00021917,4]
[365804446,1749925839418,-460.0,0.00021917,4]
[365804447,1749925839427,-460.0,0.00021917,4]
[365804448,1749925839436,-460.0,0.00021917,4]
[365804449,1749925839446,-411.53918888,0.00021917,4]
[365804450,1749925839455,-460.0,0.00021917,4]
[365804451,1749925839464,-460.0,0.00021917,4]
[365804452,1749925839473,-460.0,0.00021917,4]
[365804453,1749925839483,-460.0,0.00021917,4]
[365804454,1749925839492,-460.0,0.00021917,4]
[365804455,1749925839501,-460.0,0.00021917,4]
[365804456,1749925839511,-410.96682637,0.00021917,4]
[365804457,1749925839520,-460.0,0.00021917,4]
[365804458,1749925839530,-460.0,0.00021917,4]
[365804459,1749925839539,-460.0,0.00021917,4]
[365804460,1749925839548,-581.37663522,0.00021917,4]
[365804461,1749925839557,-460.0,0.00021917,4]
[365804462,1749925839566,-412.10506233,0.00021917,4]
[365804463,1749925839576,-460.0,0.00021917,4]
[365804464,1749925839585,-430.0,0.00021917,4]
[365804465,1749925839595,-460.0,0.00021917,4]
[365804466,1749925839606,-430.0,0.00021917,4]
[365804467,1749925839615,-372.05553249,0.00021917,4]
[365804468,1749925839626,-460.0,0.00021917,4]
[365804469,1749925839636,-1241.53,0.00021917,4]
[365804470,1749925839646,-400.0,0.00021917,4]
[365804471,1749925839655,-430.0,0.00021917,4]
[365804472,1749925839665,-460.0,0.00021917,4]
[365804473,1749925839674,-460.0,0.00021917,4]
[365804474,1749925839684,-460.0,0.00021917,4]
[365804475,1749925839694,-283.30660537,0.00021917,4]
[365804476,1749925839703,-460.0,0.00021917,4]
[365804477,1749925839712,-410.0,0.00021917,4]
[365804478,1749925839721,-460.0,0.00021917,4]
[365804479,1749925839731,-460.0,0.00021917,4]
[365804480,1749925839740,-460.0,0.00021917,4]
[365804481,1749925839750,-430.0,0.00021917,4]
[365804482,1749925839759,-460.0,0.00021917,4]
[365804483,1749925839769,-460.0,0.00021917,4]
[365804484,1749925839779,-460.0,0.00021917,4]
[365804485,1749925839788,-460.0,0.00021917,4]
[365804486,1749925839798,-460.0,0.00021917,4]
[365804487,1749925839808,-460.0,0.00021917,4]
[365804488,1749925839817,-460.0,0.00021917,4]
[365804489,1749925839826,-360.22664354,0.00021917,4]
[365804490,1749925839836,-500.0,0.00021917,4]
[365804491,1749925839845,-460.0,0.00021917,4]
[365804492,1749925839855,-460.0,0.00021917,4]
[365804493,1749925839864,-460.0,0.00021917,4]
[365804494,1749925839875,-460.0,0.00021917,4]
[365804495,1749925839886,-460.0,0.00021917,4]
[365804496,1749925839895,-410.0,0.00021917,4]
[365804497,1749925839905,-460.0,0.00021917,4]
[365804498,1749925839915,-420.75962182,0.00021917,4]
[365804499,1749925839925,-460.0,0.00021917,4]
[365804500,1749925839935,-460.0,0.00021917,4]
[365804501,1749925839945,-460.0,0.00021917,4]
[365804502,1749925839954,-862.44,0.00021917,4]
[365804503,1749925839964,-460.0,0.00021917,4]
[365804504,1749925839973,-460.0,0.00021917,4]
[365804505,1749925839983,-956.9,0.00021917,4]
[365804506,1749925839993,-460.0,0.00021917,4]
[365804507,1749925840002,-460.0,0.00021917,4]
[365804508,1749925840012,-460.0,0.00021917,4]
[365804509,1749925840021,-460.0,0.00021917,4]
[365804510,1749925840030,-460.0,0.00021917,4]
[365804511,1749925840040,-1253.82,0.00021917,4]
[365804512,1749925840050,-460.0,0.00021917,4]
[365804513,1749925840059,-460.0,0.00021917,4]
[365804514,1749925840069,-460.0,0.00021917,4]
[365804515,1749925840078,-460.0,0.00021917,4]
[365804516,1749925840088,-460.0,0.00021917,4]
[365804517,1749925840097,-1032.07,0.00021917,4]
[365804519,1749925840107,-624.19,0.00021917,4]
[365804521,1749925840116,-1735.45,0.00021917,4]
[365804522,1749925840129,-460.0,0.00021917,4]
[365804523,1749925840139,-460.0,0.00021917,4]
[365804524,1749925840148,-460.0,0.00021917,4]
[365804525,1749925840158,-460.0,0.00021917,4]
[365804526,1749925840168,-460.0,0.00021917,4]
[365804527,1749925840177,-240.0,0.00021917,4]
[365804528,1749925840187,-1027.95,0.00021917,4]
[365804529,1749925840196,-460.0,0.00021917,4]
[365804530,1749925840206,-460.0,0.00021917,4]
[365804531,1749925840215,-460.0,0.00021917,4]
[365804532,1749925840224,-289.34705371,0.00021917,4]
[365804533,1749925840235,-460.0,0.00021917,4]
[365804534,1749925840244,-460.0,0.00021917,4]
[365804535,1749925840254,-476.09,0.00021917,4]
[365804536,1749925840263,-898.8,0.00021917,4]
[365804537,1749925840273,-460.0,0.00021917,4]
[365804538,1749925840282,-460.0,0.00021917,4]
[365804539,1749925840292,-460.0,0.00021917,4]
[365804540,1749925840301,-460.0,0.00021917,4]
[365804541,1749925840310,-460.0,0.00021917,4]
[365804542,1749925840320,-577.00179121,0.00021917,4]
[365804543,1749925840329,-460.0,0.00021917,4]
[365804544,1749925840339,-513.72,0.00021917,4]
[365804545,1749925840349,-2698.88,0.00021917,4]
[365804546,1749925840358,-460.0,0.00021917,4]
[365804547,1749925840368,-460.0,0.00021917,4]
[365804548,1749925840378,-460.0,0.00021917,4]
[365804549,1749925840387,-460.0,0.00021917,4]
[365804550,1749925840397,-460.0,0.00021917,4]
[365804551,1749925840407,-1213.9,0.00021917,4]
[365804552,1749925840416,-598.78,0.00021917,4]
[365804553,1749925840425,-460.0,0.00021917,4]
[365804554,1749925840435,-430.0,0.00021917,4]
[365804555,1749925840444,-2304.08,0.00021917,4]
[365804556,1749925840453,-624.98,0.00021917,2]
[365804557,1749925840463,-460.0,0.00021917,4]
[365804558,1749925840472,-167.43811431,0.00021917,4]
[365804559,1749925840482,-460.0,0.00021917,4]
[365804560,1749925840492,-460.0,0.00021917,4]
[365804561,1749925840502,-1322.52,0.00021917,4]
[365804562,1749925840511,-460.0,0.00021917,4]
[365804563,1749925840520,-460.0,0.00021917,4]
[365804564,1749925840530,-460.0,0.00021917,4]
[365804565,1749925840539,-460.0,0.00021917,4]
[365804566,1749925840548,-361.45555516,0.00021917,4]
[365804567,1749925840558,-413.1402827,0.00021917,4]
[365804568,1749925840567,-2578.55,0.00021917,4]
[365804569,1749925840577,-460.0,0.00021917,4]
[365804570,1749925840588,-392.65062192,0.00021917,4]
[365804571,1749925840598,-460.0,0.00021917,4]
[365804572,1749925840608,-460.0,0.00021917,4]
[365804573,1749925840618,-2517.47,0.00021917,4]
[365804574,1749925840630,-460.0,0.00021917,4]
[365804575,1749925840640,-460.0,0.00021917,4]
[365804576,1749925840649,-460.0,0.00021917,4]
[365804577,1749925840659,-817.33,0.00021917,4]
[365804578,1749925840669,-1508.36,0.00021917,4]
[365804579,1749925840678,-460.0,0.00021917,4]
[365804580,1749925840688,-460.0,0.00021917,4]
[365804581,1749925840698,-151.0,0.00021917,4]
[365804582,1749925840707,-501.12,0.00021917,4]
[365804583,1749925840717,-430.0,0.00021917,4]
[365804584,1749925840726,-151.0,0.00021917,4]
[365804585,1749925840736,-500.0,0.00021917,4]
[365804586,1749925840746,-430.0,0.00021917,4]
[365804587,1749925840755,-500.0,0.00021917,4]
[365804588,1749925840765,-500.0,0.00021917,4]
[365804589,1749925840775,-1075.14,0.00021917,4]
[365804590,1749925840785,-476.62,0.00021917,4]
[365804591,1749925840796,-460.0,0.00021917,4]
[365804592,1749925840805,-460.0,0.00021917,4]
[365804593,1749925840815,-166.5478815,0.00021917,4]
[365804594,1749925840824,-500.0,0.00021917,4]
[365804595,1749925840834,-247.09869764,0.00021917,4]
[365804598,1749925840844,-460.0,0.00021917,4]
[365804599,1749925840853,-151.0,0.00021917,4]
[365804600,1749925840863,-1464.55,0.00021917,4]
[365804601,1749925840873,-151.0,0.00021917,4]
[365804602,1749925840883,-1382.48,0.00021917,4]
[365804603,1749925840892,-151.0,0.00021917,4]
[365804604,1749925840902,-460.0,0.00021917,4]
[365804605,1749925840911,-460.0,0.00021917,4]
[365804606,1749925840921,-574.9,0.00021917,4]
[365804607,1749925840930,-460.0,0.00021917,4]
[365804608,1749925840940,-460.0,0.00021917,4]
[365804609,1749925840950,-1711.35,0.00021917,4]
[365804610,1749925840959,-420.0,0.00021917,4]
[365804611,1749925840968,-460.0,0.00021917,4]
[365804612,1749925840978,-460.0,0.00021917,4]
[365804613,1749925840987,-460.0,0.00021917,4]
[365804614,1749925840996,-460.0,0.00021917,4]
[365804615,1749925841006,-400.0,0.00021917,4]
[365804616,1749925841017,-460.0,0.00021917,4]
[365804617,1749925841026,-460.0,0.00021917,4]
[365804618,1749925841036,-2058.3,0.00021917,4]
[365804619,1749925841045,-460.0,0.00021917,4]
[365804620,1749925841056,-499.950315,0.00021917,4]
[365804621,1749925841066,-460.0,0.00021917,4]
[365804622,1749925841076,-460.0,0.00021917,4]
[365804623,1749925841085,-460.0,0.00021917,4]
[365804624,1749925841095,-151.0,0.00021917,4]
[365804625,1749925841104,-2786.23,0.00021917,4]
[365804626,1749925841114,-460.0,0.00021917,4]
[365804627,1749925841125,-198.0,0.00021917,4]
[365804628,1749925841138,-427.99699983,0.00021917,4]
[365804629,1749925841147,-500.0,0.00021917,4]
[365804630,1749925841157,-460.0,0.00021917,4]
[365804631,1749925841166,-460.0,0.00021917,4]
[365804632,1749925841176,-151.81095745,0.00021917,4]
[365804633,1749925841185,-362.09651185,0.00021917,4]
[365804634,1749925841195,-460.0,0.00021917,4]
[365804635,1749925841205,-460.0,0.00021917,4]
[365804636,1749925841214,-1181.0,0.00021944,4]
[365804637,1749925841224,-151.0,0.00021944,4]
[365804638,1749925841233,-500.0,0.00021944,4]
[365804639,1749925841243,-500.0,0.00021944,4]
[365804640,1749925841252,-151.0,0.00021944,4]
[365804641,1749925841261,-500.0,0.00021944,4]
[365804642,1749925841271,-151.0,0.00021944,4]
[365804643,1749925841280,-259.93812939,0.00021944,4]
[365804644,1749925841290,-500.0,0.00021944,4]
[365804645,1749925841299,-500.0,0.00021944,4]
[365804646,1749925841309,-500.0,0.00021944,4]
[365804647,1749925841318,-500.0,0.00021944,4]
[365804648,1749925841328,-151.0,0.00021944,4]
[365804649,1749925841338,-205.80618261,0.00021944,4]
[365804650,1749925841347,-500.0,0.00021944,4]
[365804651,1749925841357,-1181.0,0.00021972,4]
[365804652,1749925841366,-245.0,0.00021972,4]
[365804653,1749925841377,-500.0,0.00021972,4]
[365804654,1749925841386,-500.0,0.00021972,4]
[365804655,1749925841395,-500.0,0.00021972,4]
[365804656,1749925841405,-500.0,0.00021972,4]
[365804657,1749925841415,-297.15774951,0.00021972,4]
[365804658,1749925841424,-372.16588728,0.00021972,4]
[365804659,1749925841433,-500.0,0.00021972,4]
[365804660,1749925841442,-151.0,0.00021972,4]
[365804661,1749925841451,-503.15818704,0.00021972,4]
[365804662,1749925841460,-500.0,0.00021973,2]
[365804663,1749925841470,-500.0,0.00021973,2]
[365804664,1749925841479,-564.10511985,0.00021973,2]
[365804665,1749925841489,-1181.0,0.00021999,4]
[365804666,1749925841499,-500.0,0.00021999,4]
[365804667,1749925841508,-500.0,0.00021999,4]
[365804668,1749925841518,-500.0,0.00021999,4]
[365804669,1749925841527,-500.0,0.00021999,4]
[365804670,1749925841537,-3582.18566613,0.00022,2]
[365804671,1749925841546,-964.9368892,0.00022003,6]
[365804672,1749925841555,-1181.0,0.00022027,4]
[365804673,1749925841564,-506.08175786,0.00022027,4]
[365804674,1749925841574,-216.07771858,0.00022027,4]
[365804675,1749925841583,-1181.0,0.00022054,4]
[365804676,1749925841593,-1181.0,0.00022081,4]
[365804677,1749925841603,-7361.99294646,0.00022091,2]
[365804678,1749925841612,-1181.0,0.00022109,4]
[365804679,1749925841622,-1181.0,0.00022136,4]
[365804680,1749925841631,-216.58091068,0.00022136,4]
[365804681,1749925841642,-365.2762568,0.00022137,2]
[365804682,1749925841651,-235.7382186,0.00022137,2]
[365804683,1749925841661,-168.0,0.0002214,2]
[365804684,1749925841671,-964.9368892,0.00022141,6]
[365804685,1749925841681,-1181.0,0.00022164,4]
[365804686,1749925841690,-500.0,0.0002219,2]
[365804687,1749925841700,-160.0,0.0002219,2]
[365804688,1749925841709,-1181.0,0.00022191,4]
[365804689,1749925841718,-460.0,0.00022191,4]
[365804690,1749925841728,-380.0,0.00022191,4]
[365804691,1749925841739,-460.0,0.00022191,4]
[365804693,1749925841748,-460.0,0.00022191,4]
[365804694,1749925841757,-460.0,0.00022191,4]
[365804696,1749925841767,-430.0,0.00022191,4]
[365804699,1749925841776,-460.0,0.00022191,4]
[365804701,1749925841786,-460.0,0.00022191,4]
[365804702,1749925841796,-460.0,0.00022191,4]
[365804704,1749925841806,-580.0,0.00022191,4]
[365804706,1749925841815,-410.0,0.00022191,4]
[365804709,1749925841825,-460.0,0.00022191,4]
[365804711,1749925841834,-460.0,0.00022191,4]
[365804713,1749925841843,-460.0,0.00022191,4]
[365804715,1749925841853,-460.0,0.00022191,4]
[365804716,1749925841863,-360.0,0.00022191,4]
[365804718,1749925841872,-280.0,0.00022191,4]
[365804720,1749925841881,-460.0,0.00022191,4]
[365804722,1749925841890,-1241.53,0.00022191,4]
[365804724,1749925841899,-400.0,0.00022191,4]
[365804726,1749925841908,-460.0,0.00022191,4]
[365804728,1749925841918,-460.0,0.00022191,4]
[365804731,1749925841927,-563.39586854,0.00022191,4]
[365804746,1749925842065,-534.92835629,0.00022191,4]
[365804748,1749925842076,-460.0,0.00022191,4]
[365804750,1749925842085,-460.0,0.00022191,4]
[365804752,1749925842095,-460.0,0.00022191,4]
[365804754,1749925842105,-460.0,0.00022191,4]